{"text_format":"1","workbook":"xlsx","n_sheets":2,"sheets":["Keresletfigyelő","Útmutató"],"not_rendered":{"charts":1,"images":0,"macros":0,"external_links":0,"defined_names":0,"comments":0,"pivot_tables":0},"unopened":[],"bounds":{"document_bytes":16777216,"sheet_cells":100000,"rows_first":2000,"rows_last":500,"rows_between":2000,"halvings":0,"cell_chars":16384,"cell_head_chars":4096},"cells_cut":0,"cells_raw":0,"read":"whole","date_system":"1900"}

{"sheet":"Keresletfigyelő","index":0,"n_rows":24,"n_cols":12,"rows_kept":24,"cut":false,"hidden":false,"merged":[[0,0,0,11],[1,0,1,11]]}
["Keresletfigyelő sablon"]
["Turisztikai szolgáltatóknak – érdeklődések, ajánlatkérések, foglalások és keresleti trendek nyomon követésére"]
[]
["Összes érdeklődés",{"$f":"SUM(D13:D24)","v":116}]
["Összes ajánlatkérés",{"$f":"SUM(E13:E24)","v":102}]
["Összes foglalás",{"$f":"SUM(F13:F24)","v":55}]
["Átlagos foglalási előidő",{"$f":"IFERROR(AVERAGE(G13:G24),0)","v":32.75}]
["Legerősebb hónap",{"$f":"IFERROR(INDEX(A13:A24,MATCH(MAX(D13:D24),D13:D24,0)),\"\")","v":"Április"}]
["Figyelmeztetés",{"$f":"IF(AND(D24<D23,E24<E23),\"Csökkenő keresleti jel\",\"Rendben / figyelni\")","v":"Rendben / figyelni"}]
[]
[]
["Hónap","Weboldal látogatók","Telefonos érdeklődések","E-mail / üzenetes érdeklődések","Ajánlatkérések","Foglalások","Átlagos foglalási előidő (nap)","Legkeresettebb időszak","Összes érdeklődés","Érdeklődés változás %","Ajánlatkérés / érdeklődés %","Keresleti jelzés"]
["Január",980.0,16.0,22.0,18.0,9.0,31.0,"Téli wellness hétvége",{"$f":"C13+D13","v":38},null,{"$f":"IF(I13=0,0,E13/I13)","v":0.4736842105},{"$f":"IF(AND(J13>0.1,K13>=0.4),\"Erősödő kereslet\",IF(J13<-0.1,\"Gyengülő kereslet\",IF(G13>G13,\"Korábbi foglalás\", \"Figyelendő\")))","v":"Figyelendő"}]
["Február",1120.0,19.0,25.0,22.0,11.0,29.0,"Valentin-hétvége",44,{"$f":"IF(I13=0,0,(I14-I13)/I13)","v":0.1578947368},0.5,{"$f":"IF(AND(J14>0.1,K14>=0.4),\"Erősödő kereslet\",IF(J14<-0.1,\"Gyengülő kereslet\",IF(G14>G13,\"Korábbi foglalás\", \"Figyelendő\")))","v":"Erősödő kereslet"}]
["Március",1350.0,24.0,31.0,28.0,15.0,34.0,"Húsvéti időszak",55,0.25,0.5090909091,"Erősödő kereslet"]
["Április",1580.0,29.0,38.0,34.0,20.0,37.0,"Pünkösdi hétvége",67,0.2181818182,0.5074626866,"Erősödő kereslet"]
["Május",null,null,null,null,null,null,null,0,-1,0,"Gyengülő kereslet"]
["Június",null,null,null,null,null,null,null,0,0,0,"Figyelendő"]
["Július",null,null,null,null,null,null,null,0,0,0,"Figyelendő"]
["Augusztus",null,null,null,null,null,null,null,0,0,0,"Figyelendő"]
["Szeptember",null,null,null,null,null,null,null,0,0,0,"Figyelendő"]
["Október",null,null,null,null,null,null,null,0,0,0,"Figyelendő"]
["November",null,null,null,null,null,null,null,0,0,0,"Figyelendő"]
["December",null,null,null,null,null,null,null,0,0,0,"Figyelendő"]

{"sheet":"Útmutató","index":1,"n_rows":21,"n_cols":4,"rows_kept":21,"cut":false,"hidden":false,"merged":[[0,0,0,5]]}
["Útmutató a Keresletfigyelő sablon használatához"]
[]
["Oszlop","Mit jelent?","Hogyan töltsd?","Miért fontos?"]
["Hónap","Az adott hónap, amelynek adatait rögzíted.","Írd be vagy hagyd a 12 hónapos listát.","Havi összehasonlításra ad alapot."]
["Weboldal látogatók","Hányan nézték meg a weboldalt.","Google Analyticsből vagy weboldal statisztikából írd be.","Korai keresleti jel: nő-e az érdeklődés."]
["Telefonos érdeklődések","Telefonon érkező megkeresések száma.","Havonta összesítsd.","Sok turisztikai szolgáltatónál fontos keresleti csatorna."]
["E-mail / üzenetes érdeklődések","E-mail, Messenger, közösségi média vagy űrlapos érdeklődések.","Minden beérkező megkeresést számolj ide.","Megmutatja, hogy mennyien lépnek kapcsolatba veled."]
["Ajánlatkérések","Konkrét árra, csomagra vagy időpontra vonatkozó kérések.","Csak a konkrét ajánlatkéréseket írd ide.","Erősebb keresleti jel, mint az általános érdeklődés."]
["Foglalások","Ténylegesen létrejött foglalások száma.","A visszaigazolt foglalásokat add meg.","Megmutatja, hogy az érdeklődésből mennyi lett valós igény."]
["Átlagos foglalási előidő","Hány nappal érkezés előtt foglalnak átlagosan.","Becsülhető vagy foglalási rendszerből kinyerhető.","Ha nő, gyakran erősödő vagy tudatosabb keresletet jelez."]
["Legkeresettebb időszak","A legtöbbet keresett dátum, hétvége vagy szezon.","Például: húsvét, nyári hétvégék, őszi szünet.","Segít kampányt, árat és ajánlatot időzíteni."]
["Összes érdeklődés","Automatikus képlet: telefon + e-mail/üzenet.","Ne írd át, képlet számolja.","Egyben mutatja a kapcsolatfelvételek mennyiségét."]
["Érdeklődés változás %","Automatikus képlet az előző hónaphoz képest.","Ne írd át.","Megmutatja, erősödik vagy gyengül-e a kereslet."]
["Ajánlatkérés / érdeklődés %","Automatikus arány: ajánlatkérések / összes érdeklődés.","Ne írd át.","Segít látni, mennyi érdeklődés válik komolyabb szándékká."]
["Keresleti jelzés","Automatikus egyszerű értelmezés.","Ne írd át.","Gyors jelzés: erősödő, gyengülő vagy figyelendő trend."]
[]
["Képletek röviden"]
["Összes érdeklődés","Telefonos érdeklődések + E-mail/üzenetes érdeklődése"]
["Érdeklődés változás %","Aktuális havi összes érdeklődés / előző havi összes érdeklődés - 1"]
["Ajánlatkérés / érdeklődés %","Ajánlatkérések / összes érdeklődés"]
["Keresleti jelzés","Erősödő, gyengülő vagy figyelendő állapot egyszerű szabályok alapján"]